fUSD/lending_fUSD_20240205
["ID","MTS","AMOUNT","RATE_DAILY","PERIOD"]
[313321260,1707148253509,-1796.81,0.00041095,2]
[313321261,1707148253518,-500.0,0.00041095,2]
[313321262,1707148253528,-1927.53,0.00041095,2]
[313321263,1707148253538,-500.0,0.00041095,2]
[313321264,1707148253547,-1086.79,0.00041095,2]
[313321265,1707148253557,-500.0,0.00041095,2]
[313321266,1707148253566,-500.0,0.00041095,2]
[313321267,1707148253575,-500.0,0.00041095,2]
[313321268,1707148253584,-676.93,0.00041095,2]
[313321269,1707148253594,-500.0,0.00041095,2]
[313321270,1707148253604,-698.43,0.00041095,2]
[313321271,1707148253613,-1538.9,0.00041095,2]
[313321272,1707148253623,-1000.0,0.00041095,7]
[313321273,1707148253633,-500.0,0.00041095,2]
[313321274,1707148253643,-357.77907638,0.00041095,2]
[313321275,1707148253653,-500.0,0.00041095,2]
[313321276,1707148253663,-497.8538578,0.00041095,2]
[313321277,1707148253685,-98.1561422,0.00041095,2]
[313321278,1707148253694,-195.0128291,0.00041095,2]
[313321279,1707148253765,1870.83446378,0.00023,3]
[313321280,1707148253951,-703.54184245,0.000229,2]
[313321281,1707148253961,-6129.15553622,0.00023999,3]
[313321282,1707148253971,-205.06597459,0.0003257,21]
[313321283,1707148253981,-155.0,0.00035617,2]
[313321284,1707148253990,-156.87437276,0.00036987,2]
[313321285,1707148253999,-304.9871709,0.00041095,2]
[313321286,1707148254009,-595.44,0.00041095,2]
[313321287,1707148254019,-754.3,0.00041095,2]
[313321288,1707148254028,-500.0,0.00041095,2]
[313321289,1707148254038,-861.54,0.00041095,2]
[313321290,1707148254048,-511.0671816,0.00041095,2]
[313321291,1707148254057,-500.0,0.00041095,2]
[313321292,1707148254067,-811.17,0.00041095,2]
[313321293,1707148254076,-527.29054972,0.00041095,2]
[313321294,1707148254086,-586.4011756,0.00041095,2]
[313321295,1707148254095,-1155.98,0.00041095,2]
[313321296,1707148254105,-500.0,0.00041095,2]
[313321297,1707148254115,-500.0,0.00041095,2]
[313321298,1707148254124,-1514.66,0.00041095,2]
[313321299,1707148254134,-530.83869087,0.00041095,2]
[313321300,1707148254147,-1388.94,0.00041095,5]
[313321301,1707148254157,-500.0,0.00041095,2]
[313321302,1707148254168,-500.0,0.00041095,2]
[313321303,1707148254183,-500.0,0.00041095,2]
[313321304,1707148254193,-500.0,0.00041095,2]
[313321305,1707148254202,-500.0,0.00041095,2]
[313321306,1707148254214,-500.0,0.00041095,2]
[313321307,1707148254224,-564.74,0.00041095,2]
[313321308,1707148254233,-571.44647542,0.00041095,2]
[313321309,1707148254262,-1162.49352458,0.00041095,2]
[313321310,1707148254274,-672.41,0.00041095,2]
[313321311,1707148254284,-500.0,0.00041095,2]
[313321312,1707148254293,-500.0,0.00041095,2]
[313321313,1707148254303,-500.0,0.00041095,2]
[313321314,1707148254313,-500.0,0.00041095,2]
[313321315,1707148254323,-500.0,0.00041095,2]
[313321316,1707148254333,-500.0,0.00041095,2]
[313321317,1707148254343,-318.69647542,0.00041095,2]
[313321318,1707148254357,-1418.44352458,0.00041095,2]
[313321319,1707148254366,-500.0,0.00041095,2]
[313321320,1707148254375,-1114.46,0.00041095,5]
[313321321,1707148254385,-500.0,0.00041095,2]
[313321322,1707148254395,-500.0,0.00041095,2]
[313321323,1707148254405,-500.0,0.00041095,2]
[313321324,1707148254414,-952.32,0.00041095,2]
[313321325,1707148254424,-500.0,0.00041095,2]
[313321326,1707148254434,-1419.96,0.00041095,2]
[313321327,1707148254507,-723.22,0.00041095,2]
[313321328,1707148254516,-782.8,0.00041095,2]
[313321329,1707148254525,-6852.5,0.00041095,2]
[313321330,1707148254535,-500.0,0.00041095,2]
[313321331,1707148254545,-500.0,0.00041095,2]
[313321332,1707148254554,-500.0,0.00041095,2]
[313321333,1707148254563,-500.0,0.00041095,2]
[313321334,1707148254573,-500.0,0.00041095,2]
[313321335,1707148254582,-671.7,0.00041095,2]
[313321336,1707148254593,-151.0,0.00041096,14]
[313321337,1707148254602,-151.0,0.00041096,14]
[313321338,1707148254611,-151.0,0.00041096,14]
[313321339,1707148254620,-151.0,0.00041096,14]
[313321340,1707148254629,-151.0,0.00041096,14]
[313321341,1707148254639,-151.0,0.00041096,14]
[313321342,1707148254648,-296.967454,0.00041096,14]
[313321343,1707148254658,-151.93,0.00041096,7]
[313321344,1707148254667,-17235.73139211,0.00041096,15]
[313321345,1707148254677,-151.0,0.00041096,14]
[313321346,1707148254686,-151.0,0.00041096,14]
[313321347,1707148254695,-159.2833856,0.00041096,14]
[313321348,1707148254704,-151.0,0.00041096,2]
[313321349,1707148254713,-151.0,0.00041096,2]
[313321350,1707148254722,-151.0,0.00041096,2]
[313321351,1707148254732,-151.0,0.00041096,2]
[313321352,1707148254741,-153.428948,0.00041096,2]
[313321353,1707148254750,-434.341658,0.00041096,2]
[313321354,1707148254759,-434.341658,0.00041096,2]
[313321355,1707148254768,-434.341658,0.00041096,2]
[313321356,1707148254778,-434.341658,0.00041096,2]
[313321357,1707148254787,-434.341658,0.00041096,2]
[313321358,1707148254796,-434.341658,0.00041096,2]
[313321359,1707148254806,-434.341658,0.00041096,2]
[313321360,1707148254823,-434.341658,0.00041096,2]
[313321361,1707148254836,-434.341658,0.00041096,2]
[313321362,1707148254846,-434.341658,0.00041096,2]
[313321363,1707148254857,-434.341658,0.00041096,2]
[313321364,1707148254867,-434.341658,0.00041096,2]
[313321365,1707148254876,-434.341658,0.00041096,2]
[313321366,1707148254887,-434.341658,0.00041096,2]
[313321367,1707148254896,-434.341658,0.00041096,2]
[313321368,1707148254906,-434.341658,0.00041096,2]
[313321369,1707148254916,-434.341658,0.00041096,2]
[313321370,1707148254925,-434.341658,0.00041096,2]
[313321371,1707148254935,-434.341658,0.00041096,2]
[313321372,1707148254944,-434.341667,0.00041096,2]
[313321373,1707148254953,-245.011919,0.00041096,14]
[313321374,1707148254963,-151.0,0.00041096,14]
[313321375,1707148254973,-151.0,0.00041096,14]
[313321376,1707148254982,-151.0,0.00041096,14]
[313321377,1707148254992,-151.0,0.00041096,14]
[313321378,1707148255002,-172.973945,0.00041096,14]
[313321379,1707148255011,-151.0,0.00041096,14]
[313321380,1707148255020,-151.0,0.00041096,14]
[313321381,1707148255030,-287.850312,0.00041096,14]
[313321382,1707148255039,-151.0,0.00041096,14]
[313321383,1707148255049,-151.0,0.00041096,14]
[313321384,1707148255058,-234.432216,0.00041096,14]
[313321385,1707148255068,-151.0,0.00041096,14]
[313321386,1707148255077,-151.0,0.00041096,14]
[313321387,1707148255087,-151.0,0.00041096,14]
[313321388,1707148255096,-151.0,0.00041096,14]
[313321389,1707148255105,-151.0,0.00041096,14]
[313321390,1707148255114,-151.0,0.00041096,14]
[313321391,1707148255124,-151.0,0.00041096,14]
[313321392,1707148255133,-151.0,0.00041096,14]
[313321393,1707148255142,-151.0,0.00041096,14]
[313321394,1707148255151,-151.0,0.00041096,14]
[313321395,1707148255160,-151.0,0.00041096,14]
[313321396,1707148255173,-151.0,0.00041096,14]
[313321397,1707148255182,-231.291252,0.00041096,14]
[313321398,1707148255191,-151.0,0.00041096,14]
[313321399,1707148255201,-151.0,0.00041096,14]
[313321400,1707148255211,-151.0,0.00041096,14]
[313321401,1707148255221,-151.0,0.00041096,14]
[313321402,1707148255230,-158.1326,0.00041096,14]
[313321403,1707148255239,-151.0,0.00041096,14]
[313321404,1707148255249,-151.0,0.00041096,14]
[313321405,1707148255259,-151.0,0.00041096,14]
[313321406,1707148255268,-151.0,0.00041096,14]
[313321407,1707148255278,-216.155778,0.00041096,14]
[313321408,1707148255287,-150.28,0.00041096,2]
[313321409,1707148255296,-151.0,0.00041096,14]
[313321410,1707148255305,-151.0,0.00041096,14]
[313321411,1707148255314,-151.0,0.00041096,14]
[313321412,1707148255327,-151.0,0.00041096,14]
[313321413,1707148255337,-151.0,0.00041096,14]
[313321414,1707148255346,-151.0,0.00041096,14]
[313321415,1707148255355,-151.0,0.00041096,14]
[313321416,1707148255364,-166.708691,0.00041096,14]
[313321417,1707148255374,-257.00498,0.00041096,14]
[313321418,1707148255383,-257.00498,0.00041096,14]
[313321419,1707148255393,-257.00498,0.00041096,14]
[313321420,1707148255402,-257.00498,0.00041096,14]
[313321421,1707148255412,-257.00498,0.00041096,14]
[313321422,1707148255421,-257.00498,0.00041096,14]
[313321423,1707148255432,-257.00498,0.00041096,14]
[313321424,1707148255442,-257.00498,0.00041096,14]
[313321425,1707148255452,-257.00498,0.00041096,14]
[313321426,1707148255462,-257.00498,0.00041096,14]
[313321427,1707148255471,-257.00498,0.00041096,14]
[313321428,1707148255481,-257.00498,0.00041096,14]
[313321429,1707148255490,-257.00498,0.00041096,14]
[313321430,1707148255500,-257.00498,0.00041096,14]
[313321431,1707148255509,-257.00498,0.00041096,14]
[313321432,1707148255518,-257.00498,0.00041096,14]
[313321433,1707148255528,-257.00498,0.00041096,14]
[313321434,1707148255538,-257.00498,0.00041096,14]
[313321435,1707148255547,-257.00498,0.00041096,14]
[313321436,1707148255557,-257.00497943,0.00041096,14]
[313321437,1707148255566,-151.0,0.00041096,14]
[313321438,1707148255576,-151.0,0.00041096,14]
[313321439,1707148255587,-151.0,0.00041096,14]
[313321440,1707148255596,-151.0,0.00041096,14]
[313321441,1707148255606,-151.0,0.00041096,14]
[313321442,1707148255616,-151.0,0.00041096,14]
[313321443,1707148255625,-151.0,0.00041096,14]
[313321444,1707148255635,-151.0,0.00041096,14]
[313321445,1707148255644,-151.0,0.00041096,14]
[313321446,1707148255655,-151.0,0.00041096,14]
[313321447,1707148255668,-151.0,0.00041096,14]
[313321448,1707148255678,-151.0,0.00041096,14]
[313321449,1707148255687,-151.0,0.00041096,14]
[313321450,1707148255697,-151.0,0.00041096,14]
[313321451,1707148255706,-151.0,0.00041096,14]
[313321452,1707148255716,-151.0,0.00041096,14]
[313321453,1707148255726,-151.0,0.00041096,14]
[313321454,1707148255736,-151.0,0.00041096,14]
[313321455,1707148255746,-256.638668,0.00041096,14]
[313321456,1707148255757,-151.0,0.00041096,14]
[313321457,1707148255766,-151.0,0.00041096,14]
[313321458,1707148255776,-151.0,0.00041096,14]
[313321459,1707148255785,-178.133628,0.00041096,14]
[313321460,1707148255795,-151.0,0.00041096,14]
[313321461,1707148255805,-151.0,0.00041096,14]
[313321462,1707148255815,-151.0,0.00041096,14]
[313321463,1707148255826,-270.067778,0.00041096,14]
[313321464,1707148255835,-151.0,0.00041096,14]
[313321465,1707148255846,-151.0,0.00041096,14]
[313321466,1707148255855,-300.68125,0.00041096,14]
[313321467,1707148255866,-181.13,0.00041096,2]
[313321468,1707148255875,-151.0,0.00041096,14]
[313321469,1707148255886,-167.168254,0.00041096,14]
[313321470,1707148255896,-151.0,0.00041096,14]
[313321471,1707148255906,-151.0,0.00041096,14]
[313321472,1707148255916,-253.7,0.00041096,14]
[313321473,1707148255926,-151.26704,0.00041096,14]
[313321474,1707148255936,-151.0,0.00041096,14]
[313321475,1707148255946,-151.0,0.00041096,14]
[313321476,1707148255957,-151.0,0.00041096,14]
[313321477,1707148255967,-151.0,0.00041096,14]
[313321478,1707148255976,-151.0,0.00041096,14]
[313321479,1707148255986,-151.0,0.00041096,14]
[313321480,1707148256000,-151.0,0.00041096,14]
[313321481,1707148256010,-151.0,0.00041096,14]
[313321482,1707148256020,-151.0,0.00041096,14]
[313321483,1707148256030,-183.802898,0.00041096,14]
[313321484,1707148256041,-262.931493,0.00041096,14]
[313321485,1707148256051,-151.0,0.00041096,14]
[313321486,1707148256061,-151.0,0.00041096,14]
[313321487,1707148256072,-151.0,0.00041096,14]
[313321488,1707148256082,-151.0,0.00041096,14]
[313321489,1707148256093,-151.0,0.00041096,14]
[313321490,1707148256103,-151.0,0.00041096,14]
[313321491,1707148256114,-151.0,0.00041096,14]
[313321492,1707148256124,-151.0,0.00041096,14]
[313321493,1707148256133,-151.0,0.00041096,14]
[313321494,1707148256144,-230.714892,0.00041096,14]
[313321495,1707148256154,-151.0,0.00041096,14]
[313321496,1707148256164,-151.0,0.00041096,14]
[313321497,1707148256175,-151.0,0.00041096,14]
[313321498,1707148256186,-151.0,0.00041096,14]
[313321499,1707148256196,-151.0,0.00041096,14]
[313321500,1707148256206,-237.636576,0.00041096,14]
[313321501,1707148256215,-151.0,0.00041096,14]
[313321502,1707148256226,-151.0,0.00041096,14]
[313321503,1707148256236,-151.0,0.00041096,14]
[313321504,1707148256246,-151.0,0.00041096,14]
[313321505,1707148256256,-151.0,0.00041096,14]
[313321506,1707148256266,-151.0,0.00041096,14]
[313321507,1707148256276,-233.302173,0.00041096,14]
[313321508,1707148256287,-151.0,0.00041096,14]
[313321509,1707148256297,-151.0,0.00041096,14]
[313321510,1707148256307,-151.0,0.00041096,14]
[313321511,1707148256317,-151.0,0.00041096,14]
[313321512,1707148256327,-151.0,0.00041096,14]
[313321513,1707148256337,-151.0,0.00041096,14]
[313321514,1707148256347,-151.0,0.00041096,14]
[313321515,1707148256356,-151.0,0.00041096,14]
[313321516,1707148256367,-151.0,0.00041096,14]
[313321517,1707148256378,-151.0,0.00041096,14]
[313321518,1707148256388,-151.0,0.00041096,14]
[313321519,1707148256398,-151.0,0.00041096,14]
[313321520,1707148256408,-152.221377,0.00041096,14]
[313321521,1707148256418,-208.373749,0.00041096,14]
[313321522,1707148256427,-160.70645,0.00041096,14]
[313321523,1707148256438,-160.70645,0.00041096,14]
[313321524,1707148256447,-160.70645,0.00041096,14]
[313321525,1707148256457,-160.70645,0.00041096,14]
[313321526,1707148256467,-160.70645,0.00041096,14]
[313321527,1707148256477,-160.70645,0.00041096,14]
[313321528,1707148256487,-160.70645,0.00041096,14]
[313321529,1707148256497,-160.70645,0.00041096,14]
[313321530,1707148256507,-160.70645,0.00041096,14]
[313321531,1707148256517,-160.70645,0.00041096,14]
[313321532,1707148256527,-160.70645,0.00041096,14]
[313321533,1707148256537,-160.70645,0.00041096,14]
[313321534,1707148256547,-160.70645,0.00041096,14]
[313321535,1707148256557,-160.70645,0.00041096,14]
[313321536,1707148256566,-160.70645,0.00041096,14]
[313321537,1707148256576,-160.70645,0.00041096,14]
[313321538,1707148256586,-160.70645,0.00041096,14]
[313321539,1707148256596,-160.70645,0.00041096,14]
[313321540,1707148256606,-160.70645,0.00041096,14]
[313321541,1707148256616,-160.706447,0.00041096,14]
[313321542,1707148256626,-151.0,0.00041096,14]
[313321543,1707148256636,-151.0,0.00041096,14]
[313321544,1707148256647,-151.0,0.00041096,14]
[313321545,1707148256656,-151.0,0.00041096,14]
[313321546,1707148256666,-156.389485,0.00041096,14]
[313321547,1707148256676,-151.0,0.00041096,14]
[313321548,1707148256686,-151.0,0.00041096,14]
[313321549,1707148256696,-151.0,0.00041096,14]
[313321550,1707148256705,-151.0,0.00041096,14]
[313321551,1707148256715,-151.0,0.00041096,14]
[313321552,1707148256725,-151.0,0.00041096,14]
[313321553,1707148256734,-151.0,0.00041096,14]
[313321554,1707148256745,-151.0,0.00041096,14]
[313321555,1707148256754,-151.0,0.00041096,14]
[313321556,1707148256764,-151.0,0.00041096,14]
[313321557,1707148256774,-151.0,0.00041096,14]
[313321558,1707148256784,-151.0,0.00041096,14]
[313321559,1707148256795,-167.887535,0.00041096,14]
[313321560,1707148256805,-3413.0,0.00041096,30]
[313321561,1707148256815,-1407.42044827,0.000411,2]
[313321562,1707148256825,-1125.0,0.000411,2]
[313321563,1707148256835,-3497.88,0.000411,7]
[313321564,1707148256846,-165.89,0.000411,7]
[313321565,1707148256855,-1945.31,0.000411,7]
[313321566,1707148256865,-1118.09,0.000411,7]
[313321567,1707148256875,-500.0,0.00041232,7]
[313321568,1707148256885,-150.27,0.00041307,2]
[313321569,1707148256895,-631.94801316,0.00041365,13]
[313321570,1707148256905,-750.0,0.00041369,7]
[313321571,1707148256915,-184.24842456,0.00041522,4]
[313321572,1707148256925,-151.11242451,0.00041785,2]
[313321573,1707148256935,-1641.45857057,0.00041847,5]
[313321574,1707148256946,-671.91815093,0.0004189,2]
[313321575,1707148256957,-244.96079686,0.0004189,2]
[313321576,1707148256968,-159.91857214,0.00041917,7]
[313321577,1707148256978,-476.89668936,0.00041917,7]
[313321578,1707148256989,-853.25213542,0.00041917,30]
[313321579,1707148257000,-500.0,0.00041917,7]
[313321580,1707148257010,-525.47836698,0.00041917,7]
[313321581,1707148257020,-500.0,0.00041917,7]
[313321582,1707148257030,-1000.0,0.00041917,2]
[313321583,1707148257040,-535.44998884,0.00041917,7]
[313321584,1707148257050,-250.0,0.00041917,7]
[313321585,1707148257060,-500.0,0.00041917,7]
[313321586,1707148257071,-500.0,0.00041917,7]
[313321587,1707148257081,-500.0,0.00041917,7]
[313321588,1707148257092,-500.0,0.00041917,7]
[313321589,1707148257102,-500.0,0.00041917,7]
[313321590,1707148257112,-500.0,0.00041917,7]
[313321591,1707148257122,-935.06,0.00041917,7]
[313321592,1707148257132,-500.0,0.00041917,7]
[313321593,1707148257142,-293.63825949,0.00041917,7]
[313321594,1707148257151,-575.02516673,0.00041917,2]
[313321595,1707148257162,-549.09,0.00041917,7]
[313321596,1707148257174,-500.0,0.00041917,7]
[313321597,1707148257186,-500.0,0.00041917,7]
[313321598,1707148257197,-500.0,0.00041917,7]
[313321599,1707148257207,-500.0,0.00041917,7]
[313321600,1707148257219,-500.0,0.00041917,7]
[313321601,1707148257230,-500.0,0.00041917,7]
[313321602,1707148257240,-612.56094162,0.00041917,7]
[313321603,1707148257250,-500.0,0.00041917,7]
[313321604,1707148257262,-322.00767012,0.00041917,7]
[313321605,1707148257273,-500.0,0.00041917,7]
[313321606,1707148257283,-500.0,0.00041917,7]
[313321607,1707148257293,-500.0,0.00041917,7]
[313321608,1707148257302,-500.0,0.00041917,2]
[313321609,1707148257312,-1000.0,0.00041917,7]
[313321610,1707148257322,-500.0,0.00041917,7]
[313321611,1707148257333,-500.0,0.00041917,7]
[313321612,1707148257343,-500.0,0.00041917,7]
[313321613,1707148257355,-500.0,0.00041917,7]
[313321614,1707148257365,-1073.9,0.00041917,7]
[313321615,1707148257374,-500.0,0.00041917,7]
[313321616,1707148257384,-500.0,0.00041917,7]
[313321617,1707148257394,-500.0,0.00041917,7]
[313321618,1707148257404,-500.0,0.00041917,7]
[313321619,1707148257414,-500.0,0.00041917,7]
[313321620,1707148257423,-1227.63,0.00041917,7]
[313321621,1707148257433,-500.0,0.00041917,7]
[313321622,1707148257443,-500.0,0.00041917,7]
[313321623,1707148257454,-500.0,0.00041917,7]
[313321624,1707148257464,-500.0,0.00041917,7]
[313321625,1707148257475,-500.0,0.00041917,7]
[313321626,1707148257485,-500.0,0.00041917,7]
[313321627,1707148257494,-500.0,0.00041917,7]
[313321628,1707148257504,-500.0,0.00041917,7]
[313321629,1707148257514,-500.0,0.00041917,7]
[313321630,1707148257524,-587.91,0.00041917,7]
[313321631,1707148257534,-500.0,0.00041917,7]
[313321632,1707148257544,-500.0,0.00041917,7]
[313321633,1707148257554,-500.0,0.00041917,7]
[313321634,1707148257563,-500.0,0.00041917,7]
[313321635,1707148257573,-1017.28,0.00041917,7]
[313321636,1707148257583,-204.30010028,0.00041917,7]
[313321637,1707148257594,-500.0,0.00041917,7]
[313321638,1707148257604,-500.0,0.00041917,7]
[313321639,1707148257615,-500.0,0.00041917,7]
[313321640,1707148257624,-266.32960709,0.00041917,7]
[313321641,1707148257682,-233.67039291,0.00041917,7]
[313321642,1707148257692,-500.0,0.00041917,7]
[313321643,1707148257702,-500.0,0.00041917,7]
[313321644,1707148257711,-921.99300411,0.00041917,7]
[313321645,1707148257725,-381.77699589,0.00041917,7]
[313321646,1707148257734,-500.0,0.00041917,7]
[313321647,1707148257745,-500.0,0.00041917,7]
[313321648,1707148257755,-500.0,0.00041917,7]
[313321649,1707148257764,-500.0,0.00041917,7]
[313321650,1707148257774,-308.97318096,0.00041917,7]
[313321651,1707148257784,-500.0,0.00041917,7]
[313321652,1707148257794,-500.0,0.00041917,7]
[313321653,1707148257804,-500.0,0.00041917,7]
[313321654,1707148257814,-500.0,0.00041917,7]
[313321655,1707148257823,-505.68,0.00041917,2]
[313321656,1707148257833,-500.0,0.00041917,7]
[313321657,1707148257843,-500.0,0.00041917,7]
[313321658,1707148257852,-500.0,0.00041917,7]
[313321659,1707148257862,-500.0,0.00041917,7]
[313321660,1707148257872,-500.0,0.00041917,7]
[313321661,1707148257881,-500.0,0.00041917,7]
[313321662,1707148257892,-500.0,0.00041917,7]
[313321663,1707148257902,-500.0,0.00041917,7]
[313321664,1707148258043,-500.0,0.00041917,2]
[313321665,1707148258069,-500.0,0.00041917,2]
[313321666,1707148258079,-500.0,0.00041917,7]
[313321667,1707148258088,-500.0,0.00041917,7]
[313321668,1707148258098,-500.0,0.00041917,7]
[313321669,1707148258107,-500.0,0.00041917,7]
[313321670,1707148258116,-500.0,0.00041917,7]
[313321671,1707148258126,-500.0,0.00041917,7]
[313321672,1707148258135,-1012.79,0.00041917,7]
[313321673,1707148258145,-500.0,0.00041917,7]
[313321674,1707148258154,-500.0,0.00041917,7]
[313321675,1707148258163,-500.0,0.00041917,7]
[313321676,1707148258174,-500.0,0.00041917,7]
[313321677,1707148258186,-212.538534,0.00041917,7]
[313321678,1707148258195,-500.0,0.00041917,7]
[313321679,1707148258204,-500.0,0.00041917,7]
[313321680,1707148258214,-500.0,0.00041917,7]
[313321681,1707148258224,-500.0,0.00041917,7]
[313321682,1707148258233,-500.0,0.00041917,7]
[313321683,1707148258243,-500.0,0.00041917,7]
[313321684,1707148258252,-500.0,0.00041917,7]
[313321685,1707148258263,-500.0,0.00041917,7]
[313321686,1707148258272,-500.0,0.00041917,7]
[313321687,1707148258281,-500.0,0.00041917,7]
[313321688,1707148258293,-500.0,0.00041917,7]
[313321689,1707148258302,-500.0,0.00041917,7]
[313321690,1707148258311,-500.0,0.00041917,7]
[313321691,1707148258320,-500.0,0.00041917,30]
[313321692,1707148258329,-989.87,0.00041917,7]
[313321693,1707148258338,-770.93,0.00041917,2]
[313321694,1707148258348,-1285.48,0.00041917,7]
[313321695,1707148258358,-500.0,0.00041917,7]
[313321696,1707148258367,-500.0,0.00041917,7]
[313321697,1707148258376,-500.0,0.00041917,7]
[313321698,1707148258385,-500.0,0.00041917,7]
[313321699,1707148258394,-500.0,0.00041917,7]
[313321700,1707148258403,-500.0,0.00041917,7]
[313321701,1707148258412,-572.6,0.00041917,7]
[313321702,1707148258422,-565.93,0.00041917,7]
[313321703,1707148258430,-3473.8222303,0.00041917,7]
[313321704,1707148258448,-4202.88506606,0.00041917,7]
[313321705,1707148258462,-3108.96270364,0.00041917,7]
[313321706,1707148258471,-382.52815629,0.00041917,7]
[313321707,1707148258481,-981.44,0.00041917,7]
[313321708,1707148258490,-1726.98,0.00041917,7]
[313321709,1707148258500,-797.62,0.00041917,7]
[313321710,1707148258510,-500.0,0.00041917,7]
[313321711,1707148258520,-1073.77369045,0.00041917,7]
[313321712,1707148258532,-3214.53630955,0.00041917,7]
[313321713,1707148258541,-500.0,0.00041917,7]
[313321714,1707148258550,-500.0,0.00041917,7]
[313321715,1707148258559,-500.0,0.00041917,7]
[313321716,1707148258568,-500.0,0.00041917,7]
[313321717,1707148258578,-500.0,0.00041917,7]
[313321718,1707148258589,-744.3,0.00041917,7]
[313321719,1707148258599,-1135.68,0.00041917,7]
[313321720,1707148258608,-2406.08,0.00041917,7]
[313321721,1707148258618,-500.0,0.00041917,7]
[313321722,1707148258627,-859.79,0.00041917,7]
[313321723,1707148258636,-865.81,0.00041917,7]
[313321724,1707148258645,-500.0,0.00041917,7]
[313321725,1707148258654,-500.0,0.00041917,7]
[313321726,1707148258663,-500.0,0.00041917,7]
[313321727,1707148258673,-500.0,0.00041917,7]
[313321728,1707148258682,-500.0,0.00041917,7]
[313321729,1707148258692,-3621.51,0.00041917,7]
[313321730,1707148258701,-500.0,0.00041917,7]
[313321731,1707148258710,-631.23,0.00041917,7]
[313321732,1707148258719,-2002.55,0.00041917,7]
[313321733,1707148258728,-500.0,0.00041917,7]
[313321734,1707148258736,-183.12496294,0.00041917,7]
[313321735,1707148258746,-500.0,0.00041917,7]
[313321736,1707148258756,-500.0,0.00041917,7]
[313321737,1707148258765,-500.0,0.00041917,7]
[313321738,1707148258774,-500.0,0.00041917,7]
[313321739,1707148258783,-500.0,0.00041917,7]
[313321740,1707148258792,-534.46,0.00041917,7]
[313321741,1707148258802,-138.07827269,0.00041917,7]
[313321742,1707148258815,-361.92172731,0.00041917,7]
[313321743,1707148258825,-947.48,0.00041917,7]
[313321744,1707148258835,-500.0,0.00041917,7]
[313321745,1707148258845,-500.0,0.00041917,7]
[313321746,1707148258855,-500.0,0.00041917,7]
[313321747,1707148258865,-505.93,0.00041917,7]
[313321748,1707148258874,-2504.82,0.00041917,7]
[313321749,1707148258883,-1347.03,0.00041917,7]
[313321750,1707148258893,-1319.22,0.00041917,7]
[313321751,1707148258902,-500.0,0.00041917,7]
[313321752,1707148258911,-500.0,0.00041917,7]
[313321753,1707148258920,-500.0,0.00041917,7]
[313321754,1707148258929,-500.0,0.00041917,7]
[313321755,1707148258938,-500.0,0.00041917,7]
[313321756,1707148258948,-500.0,0.00041917,20]
[313321757,1707148258957,-2440.2,0.00041917,7]
[313321758,1707148258966,-500.0,0.00041917,7]
[313321759,1707148258975,-500.0,0.00041917,7]